[Event "58th Akiba Rubinstein D 2022"]
[Site "Polanica-Zdroj"]
[Date "2022.08.16"]
[Round "4.15"]
[White "Garwacki, Kornel"]
[Black "Grzebieniowski, Michal"]
[Result "1/2-1/2"]
[ECO "B15"]
[WhiteElo "1571"]
[BlackElo "1710"]
[Annotator "NA RC"]
[PlyCount "110"]
[EventDate "2022.08.13"]
[EventCountry "POL"]
[SourceTitle "playchess.com"]
[Source "ChessBase"]
[SourceQuality "1"]
[TimeControl "40/5400+30:1800+30"]

1. e4 {[%emt 0:00:03]} c6 {[%emt 0:00:02]} 2. d4 {[%emt 0:00:03]} d5 {[%emt 0:00:02]} 3. Nc3 {[%emt 0:00:04]} dxe4 {[%emt 0:00:04]} 4. Nxe4 {[%emt 0:00:02]} Nf6 {[%emt 0:00:06]} 5. Nxf6+ {[%emt 0:00:10]} exf6 {[%emt 0:00:01]} 6. Nf3 {[%emt 0:00:10]} Bd6 {[%emt 0:00:05]} 7. Bd3 {[%emt 0:00:08]} O-O {[%emt 0:00:06]} 8. O-O {[%emt 0:00:09]} Nd7 {[%emt 0:00:03]} 9. c4 {[%emt 0:00:46]} Re8 {[%emt 0:00:07]} 10. Qc2 {[%emt 0:00:38]} Nf8 {[%emt 0:01:01]} 11. Be3 {[%emt 0:00:19]} Bg4 {[%emt 0:08:47]} 12. Nd2 {[%emt 0:01:53]} Qc7 {[%emt 0:01:32]} 13. h3 {[%emt 0:00:32]} Bh5 {[%emt 0:00:08]} 14. Ne4 {[%emt 0:02:31]} Bf4 {[%emt 0:04:07]} 15. Rfe1 {[%emt 0:01:42]} Bg6 {[%emt 0:05:41]} 16. Nc5 {[%emt 0:02:57]} Bd6 {[%emt 0:10:16]} 17. Nb3 {[%emt 0:10:23]} Rad8 {[%emt 0:02:37]} 18. Rad1 {[%emt 0:01:54]} Bf4 {[%emt 0:04:17]} 19. Nc1 {[%emt 0:11:46]} Re6 {[%emt 0:06:42]} 20. Bf5 {[%emt 0:05:43]} Bxf5 {[%emt 0:02:23]} 21. Qxf5 {[%emt 0:00:04]} Bxe3 {[%emt 0:00:18]} 22. fxe3 {[%emt 0:00:45]} Qg3 {[%emt 0:00:15]} 23. Qf3 {[%emt 0:02:30]} Qh4 {[%emt 0:00:54]} 24. Ne2 {[%emt 0:04:32]} f5 {[%emt 0:06:41]} 25. Nf4 {[%emt 0:04:10]} Re4 {[%emt 0:01:08]} 26. Qf2 {[%emt 0:08:39]} Qe7 {[%emt 0:03:41]} 27. b3 {[%emt 0:01:53]} Re8 {[%emt 0:09:50]} 28. Rd3 {[%emt 0:07:46]} Nd7 {[%emt 0:10:25]} 29. Nh5 {[%emt 0:02:20]} g6 {[%emt 0:01:41]} 30. Ng3 {[%emt 0:02:01]} Re6 {[%emt 0:00:05]} 31. Qf3 {[%emt 0:03:33]} Nf6 {[%emt 0:02:25]} 32. Re2 {[%emt 0:01:40]} h5 {[%emt 0:02:10]} 33. Qf4 {[%emt 0:01:39]} Ne4 {[%emt 0:00:48]} 34. Nf1 {[%emt 0:01:20]} h4 {[%emt 0:01:48]} 35. Re1 {[%emt 0:06:38]} Qf6 {[%emt 0:04:17]} 36. Qh6 {[%emt 0:00:36]} Nd6 {[%emt 0:03:46]} 37. Nd2 {[%emt 0:01:52]} a6 {[%emt 0:02:22]} 38. Nf3 {[%emt 0:01:50]} Re4 {[%emt 0:02:13]} 39. Ne5 {[%emt 0:04:11]} f4 {[%emt 0:01:44]} 40. Rf1 {[%emt 0:02:38]} Nf5 {[%emt 0:03:08]} 41. Rxf4 {[%emt 0:30:32]} R4xe5 {[%emt 0:30:35]} 42. dxe5 {[%emt 0:00:55]} Qxe5 {[%emt 0:00:02]} 43. Qg5 {[%emt 0:00:43]} Kg7 {[%emt 0:00:34]} 44. e4 {[%emt 0:01:08]} f6 {[%emt 0:02:52]} 45. Rd7+ {[%emt 0:01:17]} Re7 {[%emt 0:00:01]} 46. Rxe7+ {[%emt 0:01:02]} Qxe7 {[%emt 0:00:00]} 47. Qg4 {[%emt 0:01:24]} Ng3 {[%emt 0:00:09]} 48. Qd1 {[%emt 0:01:40]} g5 {[%emt 0:00:05]} 49. Rf2 {[%emt 0:00:39]} Nxe4 {[%emt 0:00:18]} 50. Qe1 {[%emt 0:00:48]} Qe5 {[%emt 0:00:03]} 51. Rf3 {[%emt 0:01:26]} f5 {[%emt 0:00:52]} 52. Qb4 {[%emt 0:00:41]} Qd4+ {[%emt 0:00:38]} 53. Kh2 {[%emt 0:00:27]} Qe5+ {[%emt 0:00:18]} 54. Kg1 {[%emt 0:00:09]} Qd4+ {[%emt 0:00:10]} 55. Kh1 {[%emt 0:00:32]} Qa1+ {[%emt 0:00:24]} 1/2-1/2

[Event "58th Akiba Rubinstein D 2022"]
[Site "Polanica-Zdroj"]
[Date "2022.08.16"]
[Round "4.16"]
[White "Bialik, Nikodem"]
[Black "Serewa, Antoni"]
[Result "1/2-1/2"]
[ECO "B20"]
[WhiteElo "1638"]
[BlackElo "1542"]
[Annotator "NA RC"]
[PlyCount "43"]
[EventDate "2022.08.13"]
[EventCountry "POL"]
[SourceTitle "playchess.com"]
[Source "ChessBase"]
[SourceQuality "1"]
[TimeControl "40/5400+30:1800+30"]

1. e4 {[%emt 0:10:36]} c5 {[%emt 0:00:05]} 2. a3 {[%emt 0:00:27]} d5 {[%emt 0:04:03]} 3. exd5 {[%emt 0:02:18]} Qxd5 {[%emt 0:00:08]} 4. Nf3 {[%emt 0:00:23]} Nc6 {[%emt 0:01:41]} 5. Nc3 {[%emt 0:00:24]} Qd8 {[%emt 0:05:39]} 6. Bb5 {[%emt 0:03:21]} Bd7 {[%emt 0:02:40]} 7. d4 {[%emt 0:02:31]} Nxd4 {[%emt 0:06:39]} 8. Nxd4 {[%emt 0:00:13]} cxd4 {[%emt 0:00:13]} 9. Qxd4 {[%emt 0:00:13]} Bxb5 {[%emt 0:00:51]} 10. Qxd8+ {[%emt 0:00:37]} Rxd8 {[%emt 0:04:05]} 11. Bd2 Nf6 12. Be3 {[%emt 0:00:55]} e6 {[%emt 0:02:56]} 13. Rd1 {[%emt 0:04:40]} Rc8 {[%emt 0:09:58]} 14. Bd4 {[%emt 0:00:00]} Ke7 {[%emt 0:05:37]} 15. h3 {[%emt 0:02:06]} Rc7 {[%emt 0:00:00]} 16. Ne4 {[%emt 0:01:48]} h6 17. b3 {[%emt 0:04:10]} b6 {[%emt 0:29:00]} 18. f4 {[%emt 0:03:28]} Rd7 {[%emt 0:07:00]} 19. Nxf6 {[%emt 0:03:37]} Kd6 {[%emt 0:00:43]} 20. Ng8 {[%emt 0:03:43]} h5 {[%emt 0:00:21]} 21. Nf6 {[%emt 0:00:24]} e5 {[%emt 0:01:20]} 22. fxe5+ {[%emt 0:44:11]} 1/2-1/2

[Event "58th Akiba Rubinstein D 2022"]
[Site "Polanica-Zdroj"]
[Date "2022.08.16"]
[Round "4.17"]
[White "Wilgosz, Tomasz"]
[Black "Stepinski, Piotr"]
[Result "1/2-1/2"]
[ECO "B40"]
[WhiteElo "1513"]
[BlackElo "1568"]
[Annotator "NA RC"]
[PlyCount "36"]
[EventDate "2022.08.13"]
[EventCountry "POL"]
[SourceTitle "playchess.com"]
[Source "ChessBase"]
[SourceQuality "1"]
[TimeControl "40/5400+30:1800+30"]

1. e4 {[%emt 0:00:04]} c5 {[%emt 0:00:09]} 2. Nf3 {[%emt 0:00:17]} e6 {[%emt 0:00:17]} 3. c3 {[%emt 0:00:21]} d5 {[%emt 0:00:09]} 4. exd5 {[%emt 0:00:37]} Qxd5 {[%emt 0:00:08]} 5. d4 {[%emt 0:00:40]} Nf6 {[%emt 0:00:07]} 6. Bb5+ {[%emt 0:04:07]} Bd7 {[%emt 0:03:35]} 7. Bxd7+ {[%emt 0:02:27]} Nbxd7 {[%emt 0:10:27]} 8. O-O {[%emt 0:01:42]} Be7 {[%emt 0:00:47]} 9. Re1 {[%emt 0:11:24]} cxd4 {[%emt 0:09:59]} 10. cxd4 {[%emt 0:02:08]} O-O 11. Bf4 {[%emt 0:05:36]} Bb4 {[%emt 0:27:29]} 12. Nc3 {[%emt 0:01:20]} Bxc3 {[%emt 0:02:27]} 13. bxc3 {[%emt 0:00:04]} Rac8 {[%emt 0:00:44]} 14. Re3 {[%emt 0:21:36]} Rfd8 {[%emt 0:05:00]} 15. Bg5 {[%emt 0:09:09]} h6 {[%emt 0:04:23]} 16. Bh4 {[%emt 0:02:42]} Rc6 {[%emt 0:18:25]} 17. Bg5 Rcc8 18. Bh4 Rc6 1/2-1/2

[Event "58th Akiba Rubinstein D 2022"]
[Site "Polanica-Zdroj"]
[Date "2022.08.16"]
[Round "4.18"]
[White "Grzelak, Piotr"]
[Black "Wilgosz, Szczepan"]
[Result "0-1"]
[ECO "B90"]
[WhiteElo "1684"]
[BlackElo "1530"]
[Annotator "NA RC"]
[PlyCount "87"]
[EventDate "2022.08.13"]
[EventCountry "POL"]
[SourceTitle "playchess.com"]
[Source "ChessBase"]
[SourceQuality "1"]
[TimeControl "40/5400+30:1800+30"]

1. e4 {[%emt 0:12:39]} c5 {[%emt 0:00:12]} 2. Nf3 {[%emt 0:00:27]} d6 {[%emt 0:00:35]} 3. d4 {[%emt 0:00:09]} cxd4 {[%emt 0:00:11]} 4. Nxd4 {[%emt 0:00:02]} Nf6 {[%emt 0:00:19]} 5. Nc3 {[%emt 0:00:09]} a6 {[%emt 0:00:27]} 6. f3 {[%emt 0:00:28]} e5 {[%emt 0:00:49]} 7. Nb3 {[%emt 0:00:38]} Be6 {[%emt 0:01:03]} 8. a4 {[%emt 0:00:29]} d5 {[%emt 0:17:43]} 9. exd5 {[%emt 0:03:49]} Nxd5 {[%emt 0:01:07]} 10. Nxd5 {[%emt 0:00:09]} Qxd5 {[%emt 0:02:34]} 11. Be3 {[%emt 0:03:13]} Bb4+ 12. Kf2 {[%emt 0:00:09]} Nc6 {[%emt 0:05:00]} 13. Bd3 {[%emt 0:01:32]} Rd8 {[%emt 0:05:03]} 14. Be4 {[%emt 0:02:31]} Qc4 {[%emt 0:03:44]} 15. Qe2 {[%emt 0:00:47]} Qxe2+ {[%emt 0:12:48]} 16. Kxe2 {[%emt 0:00:02]} Bxb3 {[%emt 0:00:54]} 17. Bxc6+ {[%emt 0:00:27]} bxc6 {[%emt 0:00:45]} 18. cxb3 {[%emt 0:00:16]} Ke7 {[%emt 0:10:59]} 19. Rac1 {[%emt 0:02:29]} Rc8 {[%emt 0:01:26]} 20. Bc5+ {[%emt 0:00:51]} Bxc5 {[%emt 0:00:16]} 21. Rxc5 {[%emt 0:00:01]} f6 {[%emt 0:00:25]} 22. Rd1 {[%emt 0:00:18]} Rhd8 {[%emt 0:00:55]} 23. Rxd8 {[%emt 0:00:12]} Kxd8 {[%emt 0:00:08]} 24. Kd3 {[%emt 0:00:20]} Kc7 {[%emt 0:04:59]} 25. Kc2 {[%emt 0:01:49]} Kb6 {[%emt 0:03:59]} 26. Rc3 {[%emt 0:00:10]} Rd8 {[%emt 0:02:12]} 27. b4 {[%emt 0:01:02]} Rd4 {[%emt 0:01:59]} 28. Kb3 {[%emt 0:00:21]} Rd2 {[%emt 0:07:31]} 29. Rc2 {[%emt 0:00:26]} Rxc2 {[%emt 0:07:59]} 30. Kxc2 {[%emt 0:00:07]} c5 {[%emt 0:00:13]} 31. Kc3 {[%emt 0:00:30]} cxb4+ {[%emt 0:00:35]} 32. Kxb4 {[%emt 0:00:03]} f5 {[%emt 0:00:37]} 33. Kc4 {[%emt 0:00:19]} Ka5 {[%emt 0:03:49]} 34. b3 {[%emt 0:01:41]} e4 {[%emt 0:00:25]} 35. fxe4 {[%emt 0:00:15]} fxe4 {[%emt 0:00:02]} 36. g4 {[%emt 0:01:10]} e3 {[%emt 0:05:47]} 37. Kd3 {[%emt 0:00:02]} e2 {[%emt 0:00:49]} 38. Kxe2 {[%emt 0:00:01]} Kb4 {[%emt 0:00:05]} 39. h4 {[%emt 0:00:23]} Kxb3 {[%emt 0:00:26]} 40. a5 {[%emt 0:00:09]} Kb4 {[%emt 0:00:17]} 41. Kd3 {[%emt 0:30:02]} Kxa5 {[%emt 0:30:10]} 42. Kc4 {[%emt 0:00:33]} Kb6 {[%emt 0:00:07]} 43. Kd5 {[%emt 0:00:41]} a5 {[%emt 0:00:45]} 44. Ke6 {[%emt 0:00:04]} 0-1

[Event "58th Akiba Rubinstein D 2022"]
[Site "Polanica-Zdroj"]
[Date "2022.08.16"]
[Round "4.19"]
[White "Klisowski, Bartosz"]
[Black "Karpiuk, Julian"]
[Result "1-0"]
[ECO "A06"]
[WhiteElo "1595"]
[BlackElo "1513"]
[Annotator "NA RC"]
[PlyCount "51"]
[EventDate "2022.08.13"]
[EventCountry "POL"]
[SourceTitle "playchess.com"]
[Source "ChessBase"]
[SourceQuality "1"]
[TimeControl "40/5400+30:1800+30"]

1. Nf3 {[%emt 0:00:11]} d5 {[%emt 0:00:07]} 2. g3 {[%emt 0:00:03]} Bf5 {[%emt 0:00:08]} 3. d3 {[%emt 0:01:17]} Nf6 {[%emt 0:00:26]} 4. Bg2 {[%emt 0:01:13]} c6 {[%emt 0:01:23]} 5. Nbd2 {[%emt 0:01:15]} h6 {[%emt 0:01:14]} 6. b3 {[%emt 0:02:08]} e6 {[%emt 0:01:44]} 7. O-O {[%emt 0:00:41]} Bc5 {[%emt 0:02:58]} 8. Bb2 {[%emt 0:03:53]} O-O {[%emt 0:00:34]} 9. Ne5 {[%emt 0:02:50]} Nbd7 {[%emt 0:04:44]} 10. Nxd7 {[%emt 0:00:56]} Nxd7 {[%emt 0:01:30]} 11. e4 {[%emt 0:00:19]} Bh7 {[%emt 0:00:28]} 12. Qe2 {[%emt 0:02:14]} Qe7 {[%emt 0:09:10]} 13. Rae1 {[%emt 0:05:47]} Rae8 {[%emt 0:00:51]} 14. Kh1 {[%emt 0:03:47]} dxe4 {[%emt 0:15:51]} 15. dxe4 {[%emt 0:07:41]} e5 {[%emt 0:00:21]} 16. Nc4 {[%emt 0:02:33]} b5 {[%emt 0:13:05]} 17. Ne3 {[%emt 0:10:29]} Bd4 {[%emt 0:00:33]} 18. c3 {[%emt 0:02:44]} Bxe3 {[%emt 0:00:14]} 19. Qxe3 {[%emt 0:00:26]} Qc5 {[%emt 0:00:47]} 20. Qxc5 {[%emt 0:09:11]} Nxc5 {[%emt 0:00:07]} 21. Ba3 {[%emt 0:00:11]} b4 {[%emt 0:17:09]} 22. Bxb4 {[%emt 0:09:48]} Nd3 {[%emt 0:00:51]} 23. Bxf8 {[%emt 0:00:33]} Nxe1 {[%emt 0:00:11]} 24. Rxe1 {[%emt 0:00:04]} Kxf8 {[%emt 0:00:09]} 25. Rd1 {[%emt 0:00:08]} Ke7 {[%emt 0:00:13]} 26. f3 {[%emt 0:00:20]} 1-0

[Event "58th Akiba Rubinstein D 2022"]
[Site "Polanica-Zdroj"]
[Date "2022.08.16"]
[Round "4.21"]
[White "Butkiewicz, Jan"]
[Black "Stachowiak, Bruno"]
[Result "1-0"]
[ECO "B06"]
[WhiteElo "1613"]
[BlackElo "1462"]
[Annotator "NA RC"]
[PlyCount "80"]
[EventDate "2022.08.13"]
[EventCountry "POL"]
[SourceTitle "playchess.com"]
[Source "ChessBase"]
[SourceQuality "1"]
[TimeControl "40/5400+30:1800+30"]

1. d4 {[%emt 0:00:04]} d6 {[%emt 0:00:05]} 2. Nc3 g6 {[%emt 0:01:18]} 3. e4 {[%emt 0:00:10]} Bg7 {[%emt 0:00:14]} 4. Be3 {[%emt 0:00:07]} Nf6 {[%emt 0:00:41]} 5. f3 {[%emt 0:01:02]} c6 {[%emt 0:00:31]} 6. Qd2 {[%emt 0:00:49]} Nbd7 {[%emt 0:02:07]} 7. h4 {[%emt 0:05:18]} h5 {[%emt 0:01:19]} 8. Nh3 {[%emt 0:00:59]} b5 {[%emt 0:00:24]} 9. Ng5 {[%emt 0:01:25]} a6 {[%emt 0:06:14]} 10. e5 {[%emt 0:15:54]} dxe5 {[%emt 0:04:37]} 11. dxe5 {[%emt 0:00:06]} Nxe5 {[%emt 0:02:45]} 12. Qxd8+ {[%emt 0:00:05]} Kxd8 {[%emt 0:00:14]} 13. Bd4 {[%emt 0:01:03]} Nfd7 {[%emt 0:01:07]} 14. f4 {[%emt 0:00:23]} Ke8 {[%emt 0:02:22]} 15. fxe5 {[%emt 0:02:58]} Bxe5 {[%emt 0:00:17]} 16. Bxe5 {[%emt 0:00:40]} Nxe5 {[%emt 0:00:04]} 17. Be2 {[%emt 0:06:21]} f6 {[%emt 0:00:42]} 18. Nge4 {[%emt 0:00:52]} Bg4 {[%emt 0:01:07]} 19. Bxg4 {[%emt 0:00:25]} Nxg4 {[%emt 0:00:12]} 20. Ke2 {[%emt 0:00:27]} Kf7 {[%emt 0:00:20]} 21. Rad1 {[%emt 0:00:36]} Rhd8 {[%emt 0:00:39]} 22. Nc5 {[%emt 0:00:42]} a5 {[%emt 0:00:05]} 23. Rxd8 {[%emt 0:02:47]} Rxd8 {[%emt 0:00:01]} 24. Rd1 {[%emt 0:00:24]} Rxd1 {[%emt 0:00:12]} 25. Nxd1 {[%emt 0:00:05]} a4 {[%emt 0:00:11]} 26. b3 {[%emt 0:00:23]} axb3 {[%emt 0:00:07]} 27. cxb3 {[%emt 0:00:16]} Ke8 {[%emt 0:00:07]} 28. a4 {[%emt 0:00:24]} bxa4 {[%emt 0:00:16]} 29. bxa4 {[%emt 0:00:05]} Kd8 {[%emt 0:00:07]} 30. Nf2 {[%emt 0:01:46]} Nh6 {[%emt 0:00:12]} 31. a5 {[%emt 0:00:13]} Kc8 {[%emt 0:00:04]} 32. a6 {[%emt 0:00:17]} Kb8 {[%emt 0:00:06]} 33. Nfd3 {[%emt 0:01:07]} Nf5 {[%emt 0:00:11]} 34. Nf4 {[%emt 0:04:04]} Nxh4 {[%emt 0:00:21]} 35. Nfe6 {[%emt 0:09:22]} Nf5 {[%emt 0:01:04]} 36. Kd3 {[%emt 0:01:00]} Nd6 {[%emt 0:00:08]} 37. Nd8 {[%emt 0:02:00]} Nb5 {[%emt 0:00:13]} 38. Nxc6+ {[%emt 0:00:16]} Kc7 {[%emt 0:00:04]} 39. Nd8 Kb8 40. Nc6+ Kc7 1-0

[Event "58th Akiba Rubinstein D 2022"]
[Site "Polanica-Zdroj"]
[Date "2022.08.16"]
[Round "4.22"]
[White "Witkowski, Jedrzej"]
[Black "Pieczulis, Blazej"]
[Result "0-1"]
[ECO "C00"]
[WhiteElo "1152"]
[BlackElo "1720"]
[Annotator "NA RC"]
[PlyCount "37"]
[EventDate "2022.08.13"]
[EventCountry "POL"]
[SourceTitle "playchess.com"]
[Source "ChessBase"]
[SourceQuality "1"]
[TimeControl "40/5400+30:1800+30"]

1. e4 {[%emt 0:00:03]} e6 {[%emt 0:00:23]} 2. d4 {[%emt 0:00:05]} d5 {[%emt 0:00:04]} 3. Bd3 {[%emt 0:00:04]} c5 {[%emt 0:02:28]} 4. exd5 {[%emt 0:00:10]} exd5 {[%emt 0:00:19]} 5. Nf3 {[%emt 0:00:05]} c4 {[%emt 0:00:53]} 6. Be2 {[%emt 0:00:06]} Nc6 {[%emt 0:01:12]} 7. b3 {[%emt 0:00:29]} cxb3 {[%emt 0:01:03]} 8. axb3 {[%emt 0:00:07]} Nf6 {[%emt 0:01:49]} 9. O-O {[%emt 0:01:03]} Bd6 {[%emt 0:03:47]} 10. Bg5 {[%emt 0:05:56]} Be6 {[%emt 0:03:05]} 11. Nbd2 {[%emt 0:03:15]} O-O {[%emt 0:01:15]} 12. c3 {[%emt 0:05:32]} Qd7 {[%emt 0:17:06]} 13. Bd3 {[%emt 0:22:18]} Ne8 {[%emt 0:02:25]} 14. Re1 {[%emt 0:02:11]} f5 {[%emt 0:00:30]} 15. Qe2 Nc7 {[%emt 0:08:03]} 16. Nh4 {[%emt 0:27:35]} h6 {[%emt 0:10:03]} 17. Ng6 {[%emt 0:00:38]} hxg5 {[%emt 0:09:08]} 18. Nxf8 {[%emt 0:00:06]} Rxf8 {[%emt 0:04:42]} 19. b4 0-1

[Event "58th Akiba Rubinstein D 2022"]
[Site "Polanica-Zdroj"]
[Date "2022.08.16"]
[Round "4.24"]
[White "Ugorek, Kacper"]
[Black "Klama, Andrzej"]
[Result "1-0"]
[ECO "A40"]
[WhiteElo "1747"]
[BlackElo "1441"]
[Annotator "NA RC"]
[PlyCount "47"]
[EventDate "2022.08.13"]
[EventCountry "POL"]
[SourceTitle "playchess.com"]
[Source "ChessBase"]
[SourceQuality "1"]
[TimeControl "40/5400+30:1800+30"]

1. d4 {[%emt 0:00:02]} e6 {[%emt 0:00:12]} 2. c4 {[%emt 0:00:07]} b6 {[%emt 0:00:09]} 3. Nf3 {[%emt 0:04:36]} Bb7 {[%emt 0:00:17]} 4. e3 {[%emt 0:03:02]} Nf6 {[%emt 0:00:27]} 5. g3 {[%emt 0:02:02]} h6 {[%emt 0:00:20]} 6. Bg2 {[%emt 0:00:10]} Bb4+ {[%emt 0:02:00]} 7. Nbd2 {[%emt 0:02:38]} O-O {[%emt 0:00:58]} 8. O-O {[%emt 0:00:07]} Bxd2 {[%emt 0:00:27]} 9. Qxd2 {[%emt 0:02:13]} d6 {[%emt 0:00:22]} 10. b3 {[%emt 0:01:18]} Nbd7 {[%emt 0:00:33]} 11. a4 {[%emt 0:01:25]} a5 {[%emt 0:00:32]} 12. Ba3 {[%emt 0:00:58]} c5 {[%emt 0:00:56]} 13. Rad1 {[%emt 0:09:31]} Qc7 14. dxc5 {[%emt 0:07:19]} dxc5 {[%emt 0:01:10]} 15. Qd6 {[%emt 0:04:03]} Qxd6 16. Rxd6 {[%emt 0:00:22]} Rac8 {[%emt 0:02:59]} 17. Rfd1 {[%emt 0:01:36]} Rc7 {[%emt 0:00:16]} 18. Bb2 {[%emt 0:00:42]} Bxf3 {[%emt 0:02:40]} 19. Bxf3 {[%emt 0:00:11]} e5 {[%emt 0:00:07]} 20. Bc6 {[%emt 0:05:22]} Nb8 {[%emt 0:04:32]} 21. Bg2 {[%emt 0:00:31]} Nfd7 {[%emt 0:00:43]} 22. Bh3 {[%emt 0:02:13]} Nf6 23. Bg2 Nfd7 24. Bh3 1-0

[Event "58th Akiba Rubinstein D 2022"]
[Site "Polanica-Zdroj"]
[Date "2022.08.16"]
[Round "4.25"]
[White "Durzynski, Jan"]
[Black "Ursnik, Patryk"]
[Result "1/2-1/2"]
[ECO "B34"]
[WhiteElo "1406"]
[BlackElo "1671"]
[Annotator "NA RC"]
[PlyCount "58"]
[EventDate "2022.08.13"]
[EventCountry "POL"]
[SourceTitle "playchess.com"]
[Source "ChessBase"]
[SourceQuality "1"]
[TimeControl "40/5400+30:1800+30"]

1. e4 {[%emt 0:00:03]} c5 {[%emt 0:08:48]} 2. Nf3 {[%emt 0:00:13]} Nc6 {[%emt 0:00:11]} 3. d4 {[%emt 0:00:20]} cxd4 {[%emt 0:00:05]} 4. Nxd4 {[%emt 0:00:03]} Nf6 {[%emt 0:00:09]} 5. Nc3 {[%emt 0:00:19]} e5 {[%emt 0:00:14]} 6. Nf3 {[%emt 0:00:14]} Bb4 {[%emt 0:01:23]} 7. Bd3 {[%emt 0:00:32]} d5 {[%emt 0:00:51]} 8. exd5 {[%emt 0:01:08]} Nxd5 {[%emt 0:00:35]} 9. Bd2 Nxc3 {[%emt 0:00:26]} 10. bxc3 {[%emt 0:00:47]} Be7 {[%emt 0:00:24]} 11. O-O {[%emt 0:00:42]} O-O {[%emt 0:00:03]} 12. Re1 {[%emt 0:10:11]} Bf6 {[%emt 0:00:29]} 13. h3 {[%emt 0:00:44]} Re8 {[%emt 0:00:44]} 14. Rb1 {[%emt 0:01:36]} Qc7 {[%emt 0:03:07]} 15. Bg5 {[%emt 0:04:21]} Bxg5 {[%emt 0:00:20]} 16. Nxg5 {[%emt 0:00:11]} h6 {[%emt 0:00:56]} 17. Nf3 {[%emt 0:08:25]} Be6 {[%emt 0:06:56]} 18. Rb5 {[%emt 0:02:03]} a6 19. Rb2 {[%emt 0:01:36]} f5 {[%emt 0:03:53]} 20. Nd2 {[%emt 0:02:15]} Rad8 {[%emt 0:01:30]} 21. Qe2 {[%emt 0:06:38]} e4 {[%emt 0:05:09]} 22. Nxe4 {[%emt 0:03:27]} fxe4 {[%emt 0:01:10]} 23. Qxe4 {[%emt 0:00:09]} Bf5 {[%emt 0:04:00]} 24. Qxe8+ {[%emt 0:02:16]} Rxe8 {[%emt 0:00:18]} 25. Rxe8+ {[%emt 0:00:07]} Kf7 {[%emt 0:00:08]} 26. Re3 {[%emt 0:00:37]} Be6 {[%emt 0:12:14]} 27. a4 {[%emt 0:07:26]} Ne5 {[%emt 0:10:14]} 28. Rb4 {[%emt 0:02:52]} Nxd3 {[%emt 0:09:20]} 29. cxd3 {[%emt 0:02:48]} Bd5 1/2-1/2

[Event "58th Akiba Rubinstein D 2022"]
[Site "Polanica-Zdroj"]
[Date "2022.08.16"]
[Round "4.26"]
[White "Perucki, Maciej"]
[Black "Milczarek, Robert"]
[Result "0-1"]
[ECO "B36"]
[WhiteElo "1449"]
[BlackElo "1653"]
[Annotator "NA RC"]
[PlyCount "152"]
[EventDate "2022.08.13"]
[EventCountry "POL"]
[SourceTitle "playchess.com"]
[Source "ChessBase"]
[SourceQuality "1"]
[TimeControl "40/5400+30:1800+30"]

1. e4 {[%emt 0:00:02]} c5 {[%emt 0:00:08]} 2. Nf3 {[%emt 0:00:08]} g6 {[%emt 0:00:20]} 3. d4 {[%emt 0:00:04]} cxd4 {[%emt 0:00:10]} 4. Nxd4 {[%emt 0:00:02]} Nc6 {[%emt 0:00:17]} 5. c4 {[%emt 0:00:07]} Nf6 {[%emt 0:00:18]} 6. Nc3 {[%emt 0:00:11]} d6 {[%emt 0:00:27]} 7. Be2 {[%emt 0:00:19]} Nxd4 {[%emt 0:00:38]} 8. Qxd4 {[%emt 0:00:09]} Bg7 {[%emt 0:00:04]} 9. Be3 {[%emt 0:00:24]} O-O {[%emt 0:00:22]} 10. Qd2 {[%emt 0:00:11]} a5 {[%emt 0:00:40]} 11. O-O {[%emt 0:00:16]} a4 {[%emt 0:02:37]} 12. Rfd1 {[%emt 0:02:00]} Qa5 {[%emt 0:02:46]} 13. Rac1 {[%emt 0:03:52]} Be6 {[%emt 0:04:00]} 14. f3 {[%emt 0:02:46]} Rfc8 {[%emt 0:01:57]} 15. Nd5 {[%emt 0:01:43]} Qxd2 {[%emt 0:01:39]} 16. Bxd2 {[%emt 0:00:54]} Nxd5 {[%emt 0:02:11]} 17. cxd5 {[%emt 0:00:25]} Bd4+ {[%emt 0:00:59]} 18. Kf1 {[%emt 0:00:12]} Bd7 {[%emt 0:01:06]} 19. Bc3 {[%emt 0:02:20]} Be3 20. Bd2 {[%emt 0:07:12]} Bd4 {[%emt 0:10:55]} 21. Bc3 {[%emt 0:00:21]} Be3 {[%emt 0:00:13]} 22. Bd2 {[%emt 0:00:23]} Bc5 {[%emt 0:00:58]} 23. Rc2 f5 {[%emt 0:04:52]} 24. Rdc1 {[%emt 0:03:22]} fxe4 {[%emt 0:02:00]} 25. fxe4 {[%emt 0:00:14]} Rf8+ {[%emt 0:01:11]} 26. Bf3 {[%emt 0:00:14]} Bb5+ {[%emt 0:02:05]} 27. Ke1 Bd3 {[%emt 0:05:24]} 28. Rc3 {[%emt 0:03:17]} Bb5 {[%emt 0:00:23]} 29. a3 {[%emt 0:10:06]} Kg7 {[%emt 0:15:20]} 30. Rxc5 {[%emt 0:09:48]} dxc5 {[%emt 0:00:30]} 31. Rxc5 {[%emt 0:00:01]} Ba6 {[%emt 0:01:06]} 32. Rc7 {[%emt 0:02:27]} Rf7 {[%emt 0:13:37]} 33. Bc3+ {[%emt 0:01:52]} Kf8 {[%emt 0:00:46]} 34. Bb4 {[%emt 0:03:01]} Ke8 {[%emt 0:01:34]} 35. Bg4 {[%emt 0:04:33]} e5 {[%emt 0:06:08]} 36. d6 {[%emt 0:02:40]} Rxc7 {[%emt 0:01:02]} 37. dxc7 {[%emt 0:00:13]} b6 {[%emt 0:00:24]} 38. Bd6 {[%emt 0:02:30]} Bc8 {[%emt 0:00:19]} 39. Bxc8 {[%emt 0:00:23]} Rxc8 {[%emt 0:00:05]} 40. Bxe5 {[%emt 0:00:04]} Kd7 41. Bg3 {[%emt 0:36:36]} Re8 {[%emt 0:31:13]} 42. Kf2 {[%emt 0:00:20]} Rxe4 {[%emt 0:00:18]} 43. Kf3 {[%emt 0:00:06]} Rc4 {[%emt 0:00:20]} 44. Be5 {[%emt 0:01:51]} Ke6 {[%emt 0:00:46]} 45. Bg3 {[%emt 0:02:48]} b5 {[%emt 0:00:42]} 46. h3 {[%emt 0:01:03]} g5 {[%emt 0:03:30]} 47. Bh2 {[%emt 0:02:13]} h5 {[%emt 0:02:32]} 48. Ke3 {[%emt 0:05:19]} Kd7 {[%emt 0:00:41]} 49. Kf3 Rc5 {[%emt 0:09:04]} 50. Bg3 {[%emt 0:07:32]} Rf5+ {[%emt 0:02:47]} 51. Ke2 {[%emt 0:00:40]} Rc5 {[%emt 0:01:26]} 52. Kf3 {[%emt 0:00:49]} Rc2 {[%emt 0:01:47]} 53. Be5 {[%emt 0:00:18]} Rc5 {[%emt 0:01:02]} 54. Bg3 {[%emt 0:01:57]} Ke6 {[%emt 0:00:26]} 55. Ke3 {[%emt 0:00:12]} Kd5 {[%emt 0:00:36]} 56. Kd3 {[%emt 0:00:30]} Rc6 {[%emt 0:00:30]} 57. Bh2 {[%emt 0:00:28]} h4 {[%emt 0:00:25]} 58. g4 {[%emt 0:02:00]} hxg3 {[%emt 0:00:29]} 59. Bxg3 {[%emt 0:00:06]} Rc4 {[%emt 0:00:23]} 60. Ke3 {[%emt 0:00:28]} Ke6 {[%emt 0:00:13]} 61. Kf3 {[%emt 0:00:40]} Kd7 {[%emt 0:00:19]} 62. Ke3 {[%emt 0:01:19]} b4 {[%emt 0:00:54]} 63. Kd3 {[%emt 0:02:55]} bxa3 {[%emt 0:01:07]} 64. bxa3 {[%emt 0:00:02]} Rc6 {[%emt 0:00:14]} 65. h4 {[%emt 0:00:49]} gxh4 {[%emt 0:00:50]} 66. Bxh4 {[%emt 0:00:06]} Kxc7 {[%emt 0:00:05]} 67. Be1 {[%emt 0:00:11]} Kd6 {[%emt 0:00:52]} 68. Bb4+ {[%emt 0:00:02]} Kd5 {[%emt 0:00:05]} 69. Kd2 {[%emt 0:00:39]} Kc4 {[%emt 0:00:13]} 70. Kc2 {[%emt 0:00:26]} Rg6 {[%emt 0:00:06]} 71. Kb2 {[%emt 0:00:41]} Rg2+ {[%emt 0:00:09]} 72. Kc1 {[%emt 0:00:15]} Kb3 {[%emt 0:00:16]} 73. Kd1 {[%emt 0:00:15]} Rc2 {[%emt 0:00:22]} 74. Ba5 {[%emt 0:00:39]} Rc4 {[%emt 0:00:33]} 75. Bb4 {[%emt 0:00:11]} Rxb4 {[%emt 0:00:13]} 76. axb4 {[%emt 0:00:09]} Kb2 0-1